fUST/lending_fUST_20241117
["ID","MTS","AMOUNT","RATE_DAILY","PERIOD"]
[342405971,1731803432425,-296.63085341,0.00013872,2]
[342405972,1731803432487,-3.36914659,0.00013872,2]
[342405973,1731803432496,-419.46487878,0.00013872,2]
[342405974,1731803432506,-23516.22241087,0.00013873,2]
[342405975,1731803432517,-316.09929999,0.00013873,2]
[342406009,1731803438570,-3148.690505,0.00013873,2]
[342406027,1731803484521,157.294,0.0002522,60]
[342406028,1731803485029,157.297,0.0002574,60]
[342406149,1731804632492,-576.5965889,0.00012822,2]
[342406150,1731804632502,-300.0,0.00012928,2]
[342406151,1731804632511,-300.0,0.00012928,2]
[342406152,1731804632521,-4662.76022658,0.00012929,2]
[342406162,1731804632998,-6689.87252018,0.00012929,2]
[342406206,1731804638799,-3150.00001495,0.00012929,2]
[342406207,1731804638811,-10397.36723829,0.00012929,2]
[342406208,1731804638821,-676.76813531,0.00013672,2]
[342406209,1731804638830,-250.9818438,0.00013699,2]
[342406210,1731804638839,-476.276194,0.00013699,2]
[342406211,1731804638848,-317.57917305,0.00013727,2]
[342406247,1731804643589,-1417.43485837,0.00013727,2]
[342406248,1731804643601,-1264.98596858,0.00013727,2]
[342406249,1731804643610,-615.65087057,0.00013772,2]
[342406250,1731804643620,-28851.3974677,0.00013772,2]
[342406251,1731804643631,-624.51210358,0.00013772,2]
[342406252,1731804643646,-706.74419371,0.00013772,2]
[342406266,1731804696847,157.289,0.000247,60]
[342406274,1731805534450,702.5,0.00026,60]
[342406373,1731805832807,-2933.5842789,0.00012929,2]
[342406375,1731805832817,-54.26519233,0.00013973,2]
[342406384,1731805832892,-345.73480767,0.00013973,2]
[342406386,1731805832901,-1438.56250149,0.000142,2]
[342406427,1731805838988,-829.82749851,0.000142,2]
[342406428,1731805838998,-317.517462,0.00014242,2]
[342406429,1731805839007,-300.0,0.00014662,2]
[342406430,1731805839017,-300.0,0.00014662,2]
[342406431,1731805839026,-150.0,0.00014663,2]
[342406432,1731805839035,-150.0,0.00014663,2]
[342406434,1731805839044,-530.0,0.00014663,2]
[342406436,1731805839054,-2387.0,0.00014663,2]
[342406437,1731805839063,-1113.0,0.00014663,2]
[342406438,1731805839072,-317.517462,0.00014927,2]
[342406439,1731805839081,-317.517462,0.00015612,2]
[342406440,1731805839090,-1709.26236768,0.0001566,2]
[342406441,1731805839099,-9232.51144509,0.0001586,2]
[342406448,1731805840642,-501.98208771,0.0001586,2]
[342406449,1731805840654,-3088.61011125,0.0001586,2]
[342406450,1731805840704,-2014.71726103,0.0001586,2]
[342406472,1731805844074,-1548.93151825,0.0001586,2]
[342406473,1731805844107,-8513.24757667,0.0001586,2]
[342406474,1731805844121,-420.0,0.00016052,2]
[342406475,1731805844132,-244.0,0.00016128,2]
[342406476,1731805844144,-410.43391372,0.000163,2]
[342406477,1731805844154,-150.0,0.000173,2]
[342406478,1731805844165,-151.0,0.00017309,2]
[342406479,1731805844177,-1362.822493,0.00017309,2]
[342406480,1731805844188,-1362.822493,0.00017309,2]
[342406481,1731805844200,-178.004468,0.00017309,2]
[342406482,1731805844212,-478.055068,0.00017309,2]
[342406483,1731805844225,-478.055068,0.00017309,2]
[342406484,1731805844237,-156.706129,0.00017309,2]
[342406485,1731805844249,-156.706129,0.00017309,2]
[342406486,1731805844262,-151.0,0.00017309,2]
[342406487,1731805844274,-272.037596,0.00017309,2]
[342406488,1731805844286,-272.037596,0.00017309,2]
[342406489,1731805844299,-151.0,0.00017309,2]
[342406490,1731805844310,-151.0,0.00017309,2]
[342406491,1731805844320,-555.014488,0.00017309,2]
[342406492,1731805844330,-555.014488,0.00017309,2]
[342406493,1731805844340,-587.0,0.00017574,2]
[342406494,1731805844352,-150.0,0.00017663,2]
[342406495,1731805844364,-150.0,0.00017663,2]
[342406496,1731805844376,-162.213848,0.00017712,2]
[342406497,1731805844389,-162.213848,0.00017801,2]
[342406498,1731805844400,-151.956,0.000179,2]
[342406499,1731805844411,-151.0,0.00018299,2]
[342406500,1731805844423,-272.037596,0.00018299,2]
[342406501,1731805844435,-120.54874749,0.00018299,2]
[342406554,1731806070200,157.329,0.000247,60]
[342406555,1731806701578,3800.0,0.00025999,60]
[342406677,1731807032253,-300.0,9.998e-05,2]
[342406679,1731807032264,-312.52157161,9.999e-05,2]
[342406681,1731807032274,-944.33151457,9.999e-05,2]
[342406683,1731807032287,-2619.11813958,9.999e-05,2]
[342406686,1731807032299,-14664.09635064,9.999e-05,2]
[342406688,1731807032308,-201.57267244,0.00010898,2]
[342406690,1731807032317,-557.0,0.00010959,2]
[342406691,1731807032326,-183.7367225,0.00012115,2]
[342406694,1731807032340,-1197.7241059,0.00012326,2]
[342406696,1731807032350,-743.22413578,0.00012729,2]
[342406698,1731807032359,-1022.9368395,0.00013366,2]
[342406700,1731807032368,-2751.35397035,0.00013366,2]
[342406740,1731807038287,-927.98848487,0.00013366,2]
[342406741,1731807038298,-923.63965889,0.00013488,2]
[342406743,1731807039828,-1487.499995,0.00013488,2]
[342406745,1731807040002,-16868.23222211,0.00013488,2]
[342406746,1731807040013,-400.0,0.00013973,2]
[342406747,1731807040022,-2041.55,0.000141,2]
[342406748,1731807040032,-345.104016,0.00017237,2]
[342406749,1731807040041,-151.0,0.00017309,2]
[342406750,1731807040050,-151.0,0.00017309,2]
[342406751,1731807040060,-151.0,0.00017309,2]
[342406752,1731807040069,-151.0,0.00017309,2]
[342406753,1731807040079,-212.3355097,0.00017781,2]
[342406754,1731807040276,-303.8520826,0.00017781,2]
[342406755,1731807040293,-153.0,0.00017781,2]
[342406756,1731807040303,-307.7019154,0.00017781,2]
[342406757,1731807040312,-212.3355097,0.00017781,2]
[342406758,1731807040321,-153.0,0.00017781,2]
[342406759,1731807040331,-153.0,0.00017781,2]
[342406760,1731807040346,-212.3355097,0.00017781,2]
[342406761,1731807040356,-212.3355097,0.00017781,2]
[342406762,1731807040366,-212.3355097,0.00017781,2]
[342406763,1731807040375,-212.3355097,0.00017781,2]
[342406764,1731807040384,-212.3355097,0.00017781,2]
[342406765,1731807040394,-212.3355097,0.00017781,2]
[342406766,1731807040403,-212.3355097,0.00017781,2]
[342406767,1731807040413,-216.3750748,0.00017781,2]
[342406768,1731807040422,-537.13277472,0.00018029,2]
[342406769,1731807040431,-151.956,0.00018082,2]
[342406770,1731807040441,-1335.62717769,0.00018298,2]
[342406771,1731807040450,-151.0,0.00018298,2]
[342406772,1731807040460,-151.0,0.00018298,2]
[342406773,1731807040469,-151.0,0.00018298,2]
[342406774,1731807040479,-151.0,0.00018298,2]
[342406775,1731807040488,-151.0,0.00018298,2]
[342406776,1731807040498,-151.0,0.00018299,2]
[342406777,1731807040508,-151.0,0.00018299,2]
[342406778,1731807040517,-151.0,0.00018299,2]
[342406779,1731807040526,-592.982469,0.00018299,2]
[342406780,1731807040536,-592.982469,0.00018299,2]
[342406781,1731807040545,-151.0,0.00018299,2]
[342406782,1731807040555,-225.204519,0.00018299,2]
[342406783,1731807040564,-225.204519,0.00018299,2]
[342406784,1731807040573,-151.0,0.00018299,2]
[342406785,1731807040582,-151.0,0.00018299,2]
[342406786,1731807040596,-1226.540243,0.00018299,2]
[342406787,1731807040606,-1226.540243,0.00018299,2]
[342406788,1731807040615,-1077.92436,0.00018299,2]
[342406789,1731807040624,-1077.92436,0.00018299,2]
[342406790,1731807040634,-151.0,0.00018299,2]
[342406791,1731807040643,-232.575097,0.00018299,2]
[342406792,1731807040652,-151.0,0.00018299,2]
[342406793,1731807040661,-151.0,0.00018299,2]
[342406794,1731807040670,-151.0,0.00018299,2]
[342406795,1731807040681,-151.0,0.00018299,2]
[342406796,1731807040690,-151.0,0.00018299,2]
[342406797,1731807040699,-590.866944,0.00018299,2]
[342406798,1731807040712,-590.866944,0.00018299,2]
[342406799,1731807040722,-151.0,0.00018299,2]
[342406800,1731807040731,-151.0,0.00018299,2]
[342406801,1731807040742,-151.0,0.00018299,2]
[342406802,1731807040753,-430.249561,0.00018299,2]
[342406803,1731807040762,-430.249561,0.00018299,2]
[342406804,1731807040772,-670.88442,0.00018299,2]
[342406805,1731807040781,-670.88442,0.00018299,2]
[342406806,1731807040791,-565.50793181,0.00018299,2]
[342406807,1731807040803,-500.0,0.00018299,2]
[342406808,1731807040814,-212.8768407,0.00018299,2]
[342406809,1731807040824,-500.0,0.00018299,2]
[342406810,1731807040835,-513.88081892,0.00018299,2]
[342406811,1731807040846,-226.947493,0.000183,2]
[342406812,1731807040855,-152.309419,0.000183,2]
[342406813,1731807040865,-172.5718,0.000183,2]
[342406814,1731807040874,-271.073582,0.000183,2]
[342406815,1731807040884,-271.073582,0.000183,2]
[342406816,1731807040894,-254.89321,0.000183,2]
[342406817,1731807040904,-151.0,0.000183,2]
[342406818,1731807040918,-555.014488,0.000183,2]
[342406819,1731807040928,-555.014488,0.000183,2]
[342406820,1731807040939,-555.014488,0.000183,2]
[342406821,1731807040949,-555.014488,0.000183,2]
[342406822,1731807040959,-425.937592,0.000183,2]
[342406823,1731807040968,-425.937592,0.000183,2]
[342406824,1731807040978,-425.937592,0.000183,2]
[342406825,1731807040987,-425.937592,0.000183,2]
[342406826,1731807040997,-151.0,0.000183,2]
[342406827,1731807041006,-151.684051,0.000183,2]
[342406828,1731807041016,-151.0,0.000183,2]
[342406829,1731807041025,-151.0,0.000183,2]
[342406830,1731807041034,-151.0,0.000183,2]
[342406831,1731807041044,-151.0,0.000183,2]
[342406832,1731807041053,-151.0,0.000183,2]
[342406833,1731807041062,-151.0,0.000183,2]
[342406834,1731807041072,-151.0,0.000183,2]
[342406835,1731807041081,-151.0,0.000183,2]
[342406836,1731807041092,-275.317652,0.000183,2]
[342406837,1731807041101,-151.0,0.000183,2]
[342406838,1731807041111,-151.0,0.000183,2]
[342406839,1731807041120,-221.587238,0.000183,2]
[342406840,1731807041131,-221.587238,0.000183,2]
[342406841,1731807041140,-221.587238,0.000183,2]
[342406842,1731807041149,-221.587238,0.000183,2]
[342406843,1731807041159,-592.982469,0.000183,2]
[342406844,1731807041168,-592.982469,0.000183,2]
[342406845,1731807041178,-592.982469,0.000183,2]
[342406846,1731807041191,-592.982469,0.000183,2]
[342406847,1731807041201,-195.627521,0.000183,2]
[342406848,1731807041210,-151.0,0.000183,2]
[342406849,1731807041219,-225.204519,0.000183,2]
[342406850,1731807041228,-225.204519,0.000183,2]
[342406851,1731807041237,-225.204519,0.000183,2]
[342406852,1731807041247,-225.204519,0.000183,2]
[342406853,1731807041257,-151.0,0.000183,2]
[342406854,1731807041266,-152.310542,0.000183,2]
[342406855,1731807041280,-151.0,0.000183,2]
[342406856,1731807041289,-1226.540243,0.000183,2]
[342406857,1731807041298,-1226.540243,0.000183,2]
[342406858,1731807041307,-1226.540243,0.000183,2]
[342406859,1731807041316,-1226.540243,0.000183,2]
[342406860,1731807041326,-1226.540243,0.000183,2]
[342406861,1731807041334,-1077.92436,0.000183,2]
[342406862,1731807041346,-1226.540243,0.000183,2]
[342406863,1731807041356,-1077.92436,0.000183,2]
[342406864,1731807041366,-1077.92436,0.000183,2]
[342406865,1731807041375,-1077.92436,0.000183,2]
[342406866,1731807041384,-240.024622,0.000183,2]
[342406867,1731807041395,-151.0,0.000183,2]
[342406868,1731807041404,-151.0,0.000183,2]
[342406869,1731807041413,-151.0,0.000183,2]
[342406870,1731807041423,-151.0,0.000183,2]
[342406871,1731807041432,-151.0,0.000183,2]
[342406872,1731807041441,-151.0,0.000183,2]
[342406873,1731807041451,-151.0,0.000183,2]
[342406874,1731807041460,-151.0,0.000183,2]
[342406875,1731807041469,-151.0,0.000183,2]
[342406876,1731807041478,-151.0,0.000183,2]
[342406877,1731807041487,-151.0,0.000183,2]
[342406878,1731807041496,-151.0,0.000183,2]
[342406879,1731807041505,-151.0,0.000183,2]
[342406880,1731807041516,-150.0,0.000183,2]
[342406881,1731807041525,-151.0,0.000183,2]
[342406882,1731807041534,-151.0,0.000183,2]
[342406883,1731807041543,-151.0,0.000183,2]
[342406884,1731807041552,-151.0,0.000183,2]
[342406885,1731807041562,-151.0,0.000183,2]
[342406886,1731807041570,-151.0,0.000183,2]
[342406887,1731807041580,-151.0,0.000183,2]
[342406888,1731807041595,-151.0,0.000183,2]
[342406889,1731807041604,-151.0,0.000183,2]
[342406890,1731807041613,-151.0,0.000183,2]
[342406891,1731807041622,-590.866944,0.000183,2]
[342406892,1731807041631,-590.866944,0.000183,2]
[342406893,1731807041642,-590.866944,0.000183,2]
[342406894,1731807041651,-590.866944,0.000183,2]
[342406895,1731807041661,-151.0,0.000183,2]
[342406896,1731807041671,-238.441956,0.000183,2]
[342406897,1731807041680,-151.0,0.000183,2]
[342406898,1731807041689,-151.0,0.000183,2]
[342406899,1731807041698,-151.0,0.000183,2]
[342406900,1731807041708,-151.0,0.000183,2]
[342406901,1731807041717,-151.0,0.000183,2]
[342406902,1731807041726,-151.0,0.000183,2]
[342406903,1731807041736,-151.0,0.000183,2]
[342406904,1731807041749,-273.031006,0.000183,2]
[342406905,1731807041759,-430.249561,0.000183,2]
[342406906,1731807041768,-430.249561,0.000183,2]
[342406907,1731807041777,-430.249561,0.000183,2]
[342406908,1731807041786,-430.249561,0.000183,2]
[342406909,1731807041795,-430.249561,0.000183,2]
[342406910,1731807041805,-430.249561,0.000183,2]
[342406911,1731807041815,-430.249561,0.000183,2]
[342406912,1731807041824,-430.249561,0.000183,2]
[342406913,1731807041833,-336.46681587,0.000183,2]
[342406914,1731807041845,-670.88442,0.000183,2]
[342406915,1731807041854,-670.88442,0.000183,2]
[342406916,1731807041863,-670.88442,0.000183,2]
[342406917,1731807041872,-670.88442,0.000183,2]
[342406918,1731807041882,-670.88442,0.000183,2]
[342406919,1731807041892,-670.88442,0.000183,2]
[342406920,1731807041901,-670.88442,0.000183,2]
[342406921,1731807041911,-670.88442,0.000183,2]
[342406922,1731807041920,-466.23327991,0.00018411,2]
[342406923,1731807041929,-212.3355097,0.00018603,2]
[342406924,1731807041939,-225.204519,0.00018603,2]
[342406925,1731807041948,-225.204519,0.00018603,2]
[342406926,1731807041957,-151.0,0.00018603,2]
[342406927,1731807041967,-151.0,0.00018603,2]
[342406928,1731807041977,-151.0,0.00018603,2]
[342406929,1731807041987,-151.0,0.00018603,2]
[342406930,1731807041996,-590.866944,0.00018603,2]
[342406931,1731807042005,-590.866944,0.00018603,2]
[342406932,1731807042015,-151.0,0.00018603,2]
[342406933,1731807042024,-430.249561,0.00018603,2]
[342406934,1731807042033,-430.249561,0.00018603,2]
[342406935,1731807042042,-255.888443,0.000188,2]
[342406936,1731807042051,-592.982469,0.000188,2]
[342406937,1731807042060,-592.982469,0.000188,2]
[342406938,1731807042070,-151.0,0.000188,2]
[342406939,1731807042081,-1226.540243,0.000188,2]
[342406940,1731807042090,-1226.540243,0.000188,2]
[342406941,1731807042103,-1077.92436,0.000188,2]
[342406942,1731807042113,-1077.92436,0.000188,2]
[342406943,1731807042122,-151.0,0.000188,2]
[342406944,1731807042131,-212.999375,0.000188,2]
[342406945,1731807042140,-151.0,0.000188,2]
[342406946,1731807042149,-151.0,0.000188,2]
[342406947,1731807042159,-267.058604,0.000188,2]
[342406948,1731807042169,-253.710322,0.000188,2]
[342406949,1731807042178,-151.0,0.000188,2]
[342406950,1731807042192,-430.249561,0.000188,2]
[342406951,1731807042203,-430.249561,0.000188,2]
[342406952,1731807042212,-670.88442,0.000188,2]
[342406953,1731807042222,-670.88442,0.000188,2]
[342406954,1731807042232,-670.88442,0.000188,2]
[342406955,1731807042242,-670.88442,0.000188,2]
[342406956,1731807042251,-555.014488,0.00019027,2]
[342406957,1731807042262,-555.014488,0.00019027,2]
[342406958,1731807042272,-425.937592,0.00019027,2]
[342406959,1731807042282,-425.937592,0.00019027,2]
[342406960,1731807042291,-151.0,0.00019027,2]
[342406961,1731807042301,-151.0,0.00019027,2]
[342406962,1731807042310,-151.0,0.00019027,2]
[342406963,1731807042320,-151.0,0.00019027,2]
[342406964,1731807042329,-221.587238,0.00019027,2]
[342406965,1731807042339,-28.17513575,0.00019027,2]
[342406992,1731807354536,157.959,0.000247,60]
[342406993,1731807509491,164.5328539,0.00025999,60]
[342406994,1731807512649,1145.12467829,0.000259,60]
[342407017,1731807591171,1388.0,0.000259,120]
[342407018,1731807593785,5893.40204775,0.00025999,60]
[342407026,1731808012054,369.51727593,0.00025999,60]
[342407056,1731808176025,1204.9644,0.00025999,60]
[342407154,1731808234290,-300.0,0.00013871,2]
[342407155,1731808234299,-230.069344,0.00013872,2]
[342407156,1731808234310,-593.71283657,0.00013872,2]
[342407157,1731808234320,-48017.15173791,0.00013872,2]
[342407158,1731808234330,-342.32256284,0.00013972,2]
[342407159,1731808234340,-400.0,0.00013973,2]
[342407160,1731808234351,-1837.41,0.000141,2]
[342407161,1731808234361,-1424.4808565,0.00014623,2]
[342407162,1731808234372,-420.0,0.00015198,2]
[342407163,1731808234382,-230.12677947,0.00015563,2]
[342407164,1731808234392,-593.71283657,0.0001559,2]
[342407165,1731808234402,-1000.0,0.000158,2]
[342407166,1731808234414,-150.343,0.00016218,2]
[342407167,1731808234424,-1000.0,0.000163,2]
[342407168,1731808234445,-587.0,0.00016653,2]
[342407169,1731808234455,-1000.0,0.000168,2]
[342407170,1731808234465,-151.0,0.00017237,2]
[342407171,1731808234477,-1000.0,0.000173,2]
[342407172,1731808234487,-593.71283657,0.00017309,2]
[342407173,1731808234497,-151.0,0.00017781,2]
[342407174,1731808234507,-1000.0,0.000178,2]
[342407175,1731808234518,-333.008692,0.00018082,2]
[342407176,1731808234528,-333.008692,0.00018082,2]
[342407177,1731808234538,-823.0,0.00018247,2]
[342407178,1731808234548,-153.131,0.00018258,2]
[342407179,1731808234558,-151.0,0.00018298,2]
[342407180,1731808234570,-151.0,0.00018299,2]
[342407181,1731808234581,-151.0,0.00018299,2]
[342407182,1731808234591,-151.0,0.00018299,2]
[342407183,1731808234600,-164.371456,0.00018299,2]
[342407184,1731808234609,-164.371456,0.00018299,2]
[342407185,1731808234621,-152.816729,0.00018299,2]
[342407186,1731808234631,-333.008692,0.00018299,2]
[342407187,1731808234641,-333.008692,0.00018299,2]
[342407188,1731808234652,-333.008692,0.00018299,2]
[342407189,1731808234662,-333.008692,0.00018299,2]
[342407190,1731808234672,-151.0,0.000183,2]
[342407191,1731808234683,-151.0,0.000183,2]
[342407192,1731808234693,-151.0,0.000183,2]
[342407193,1731808234703,-151.0,0.000183,2]
[342407194,1731808234712,-151.0,0.000183,2]
[342407195,1731808234724,-151.0,0.000183,2]
[342407196,1731808234734,-151.0,0.000183,2]
[342407197,1731808234745,-151.0,0.000183,2]
[342407198,1731808234758,-151.0,0.000183,2]
[342407199,1731808234768,-151.0,0.000183,2]
[342407200,1731808234778,-151.0,0.000183,2]
[342407201,1731808234787,-187.86461406,0.000183,2]
[342407202,1731808234798,-164.371456,0.000183,2]
[342407203,1731808234807,-164.371456,0.000183,2]
[342407204,1731808234817,-164.371456,0.000183,2]
[342407205,1731808234827,-164.371456,0.000183,2]
[342407206,1731808234836,-164.371456,0.000183,2]
[342407207,1731808234846,-164.371456,0.000183,2]
[342407208,1731808234855,-164.371456,0.000183,2]
[342407209,1731808234865,-164.371456,0.000183,2]
[342407210,1731808234875,-333.008692,0.000183,2]
[342407211,1731808234885,-333.008692,0.000183,2]
[342407212,1731808234894,-333.008692,0.000183,2]
[342407213,1731808234904,-333.008692,0.000183,2]
[342407214,1731808234914,-333.008692,0.000183,2]
[342407215,1731808234924,-333.008692,0.000183,2]
[342407216,1731808234935,-333.008692,0.000183,2]
[342407217,1731808234944,-333.008692,0.000183,2]
[342407218,1731808234955,-333.008692,0.000183,2]
[342407219,1731808234965,-333.008692,0.000183,2]
[342407220,1731808234978,-333.008692,0.000183,2]
[342407221,1731808234987,-333.008692,0.000183,2]
[342407222,1731808234997,-1000.0,0.000183,2]
[342407223,1731808235007,-164.371456,0.00018603,2]
[342407224,1731808235017,-164.371456,0.00018603,2]
[342407225,1731808235028,-500.67045361,0.0001875,2]
[342407226,1731808235038,-500.33286481,0.0001875,2]
[342407227,1731808235048,-561.45850127,0.0001875,2]
[342407228,1731808235057,-160.643108,0.000188,2]
[342407229,1731808235067,-151.0,0.000188,2]
[342407230,1731808235077,-151.0,0.000188,2]
[342407231,1731808235086,-164.371456,0.000188,2]
[342407232,1731808235096,-164.371456,0.000188,2]
[342407233,1731808235106,-333.008692,0.000188,2]
[342407234,1731808235116,-333.0087,0.000188,2]
[342407235,1731808235126,-1000.0,0.000188,2]
[342407236,1731808235135,-1345.60888227,0.00019026,2]
[342407237,1731808235144,-593.71283657,0.00019027,2]
[342407238,1731808235154,-670.88442,0.00019027,2]
[342407239,1731808235163,-670.88442,0.00019027,2]
[342407240,1731808235173,-151.0,0.00019027,2]
[342407241,1731808235182,-164.371456,0.00019027,2]
[342407242,1731808235192,-164.371456,0.00019027,2]
[342407243,1731808235201,-151.0,0.00019027,2]
[342407244,1731808235211,-151.0,0.00019027,2]
[342407245,1731808235222,-151.0,0.00019027,2]
[342407246,1731808235236,-151.0,0.00019027,2]
[342407247,1731808235246,-244.153231,0.00019027,2]
[342407248,1731808235255,-244.153231,0.00019027,2]
[342407249,1731808235264,-151.0,0.00019027,2]
[342407250,1731808235274,-151.0,0.00019027,2]
[342407251,1731808235283,-151.0,0.00019027,2]
[342407252,1731808235294,-301.593445,0.00019027,2]
[342407253,1731808235303,-301.593445,0.00019027,2]
[342407254,1731808235312,-151.0,0.00019027,2]
[342407255,1731808235322,-648.432515,0.00019027,2]
[342407256,1731808235331,-648.432515,0.00019027,2]
[342407257,1731808235341,-151.0,0.00019027,2]
[342407258,1731808235351,-167.123004,0.00019027,2]
[342407259,1731808235360,-613.270122,0.00019027,2]
[342407260,1731808235370,-613.270122,0.00019027,2]
[342407261,1731808235380,-357.001586,0.00019027,2]
[342407262,1731808235390,-357.001586,0.00019027,2]
[342407263,1731808235399,-265.143964,0.00019027,2]
[342407264,1731808235409,-670.88442,0.00019167,2]
[342407265,1731808235418,-670.88442,0.00019167,2]
[342407266,1731808235428,-151.0,0.00019167,2]
[342407267,1731808235437,-164.371456,0.00019167,2]
[342407268,1731808235447,-164.371456,0.00019167,2]
[342407269,1731808235456,-151.0,0.00019167,2]
[342407270,1731808235466,-151.0,0.00019167,2]
[342407271,1731808235482,-151.0,0.00019167,2]
[342407272,1731808235491,-151.0,0.00019167,2]
[342407273,1731808235501,-151.0,0.00019167,2]
[342407274,1731808235511,-151.0,0.00019167,2]
[342407275,1731808235520,-151.0,0.00019167,2]
[342407276,1731808235529,-152.352939,0.00019167,2]
[342407277,1731808235538,-648.432515,0.00019167,2]
[342407278,1731808235548,-648.432515,0.00019167,2]
[342407279,1731808235558,-151.0,0.00019167,2]
[342407280,1731808235567,-547.26,0.00019168,3]
[342407281,1731808235577,-314.34773047,0.00019177,2]
[342407282,1731808235589,-151.0,0.00019178,2]
[342407283,1731808235598,-670.88442,0.00019178,2]
[342407284,1731808235608,-670.88442,0.00019178,2]
[342407285,1731808235619,-151.0,0.00019178,2]
[342407286,1731808235628,-164.371456,0.00019178,2]
[342407287,1731808235638,-164.371462,0.00019178,2]
[342407288,1731808235647,-151.0,0.00019178,2]
[342407289,1731808235657,-159.584321,0.00019178,2]
[342407290,1731808235666,-165.148677,0.00019178,2]
[342407291,1731808235676,-165.148677,0.00019178,2]
[342407292,1731808235685,-151.0,0.00019178,2]
[342407293,1731808235694,-151.0,0.00019178,2]
[342407294,1731808235704,-151.0,0.00019178,2]
[342407295,1731808235713,-151.0,0.00019178,2]
[342407296,1731808235725,-244.153231,0.00019178,2]
[342407297,1731808235734,-244.153231,0.00019178,2]
[342407298,1731808235743,-151.0,0.00019178,2]
[342407299,1731808235753,-151.0,0.00019178,2]
[342407300,1731808235763,-500.0,0.00019178,2]
[342407301,1731808235773,-323.13547755,0.00019178,2]
[342407302,1731808235782,-500.0,0.00019178,2]
[342407303,1731808235792,-500.0,0.00019178,2]
[342407304,1731808235801,-500.0,0.00019178,2]
[342407305,1731808235811,-200.0,0.00019178,4]
[342407306,1731808235822,-301.593445,0.00019178,2]
[342407307,1731808235832,-301.593445,0.00019178,2]
[342407308,1731808235841,-151.0,0.00019178,2]
[342407309,1731808235852,-648.432515,0.00019178,2]
[342407310,1731808235862,-648.432515,0.00019178,2]
[342407311,1731808235873,-151.0,0.00019178,2]
[342407312,1731808235883,-613.270122,0.00019178,2]
[342407313,1731808235892,-613.270122,0.00019178,2]
[342407314,1731808235902,-357.001586,0.00019178,2]
[342407315,1731808235912,-357.001586,0.00019178,2]
[342407316,1731808235922,-160.973787,0.00019178,2]
[342407317,1731808235932,-212.169429,0.00019178,2]
[342407318,1731808235942,-150.0,0.00019218,2]
[342407319,1731808235953,-1000.0,0.000193,2]
[342407320,1731808235963,-150.129383,0.000193,2]
[342407321,1731808235976,-613.270122,0.00019328,2]
[342407322,1731808235987,-613.270122,0.00019328,2]
[342407323,1731808235997,-465.061664,0.00019332,2]
[342407324,1731808236006,-151.0,0.0001938,2]
[342407325,1731808236017,-165.666397,0.000194,2]
[342407326,1731808236026,-244.153231,0.000194,2]
[342407327,1731808236036,-244.153231,0.000194,2]
[342407328,1731808236045,-301.593445,0.000194,2]
[342407329,1731808236055,-301.593445,0.000194,2]
[342407330,1731808236065,-151.0,0.000194,2]
[342407331,1731808236076,-151.0,0.00019424,2]